[Event "*** Titled Tuesday Blitz"]
[Site "Chess.com"]
[Date "2020.11.03"]
[Round "8"]
[White "beautroll"]
[Black "Gerodot71"]
[Result "0-1"]
[WhiteElo "2334"]
[BlackElo "2487"]
[TimeControl "180+1"]
[EndTime "11:34:19 PST"]
[Termination "Gerodot71 won by resignation"]

1. e4 {[%clk 0:03:00.9]} 1... e5 {[%clk 0:02:59.5]} 2. Nf3 {[%clk 0:03:00.7]}
2... Nc6 {[%clk 0:02:59.6]} 3. d4 {[%clk 0:03:00]} 3... exd4 {[%clk 0:03:00.5]}
4. Nxd4 {[%clk 0:03:00.9]} 4... Bc5 {[%clk 0:03:00.6]} 5. Nb3 {[%clk 0:02:59.6]}
5... Bb6 {[%clk 0:03:00.5]} 6. Nc3 {[%clk 0:02:58.1]} 6... Nge7 {[%clk
0:02:59.9]} 7. Bg5 {[%clk 0:02:56.9]} 7... f6 {[%clk 0:02:56.8]} 8. Bh4 {[%clk
0:02:51.5]} 8... O-O {[%clk 0:02:53.9]} 9. Bc4+ {[%clk 0:02:49.6]} 9... Kh8
{[%clk 0:02:53.6]} 10. O-O {[%clk 0:02:49.3]} 10... d6 {[%clk 0:02:53.9]} 11.
Kh1 {[%clk 0:02:45.8]} 11... Qe8 {[%clk 0:02:52.4]} 12. f4 {[%clk 0:02:43.5]}
12... f5 {[%clk 0:02:52.2]} 13. a4 {[%clk 0:02:28]} 13... a5 {[%clk 0:02:49.8]}
14. Bd3 {[%clk 0:02:05]} 14... Qg6 {[%clk 0:02:46.8]} 15. Nd5 {[%clk 0:01:59.4]}
15... Nxd5 {[%clk 0:02:39.3]} 16. exd5 {[%clk 0:02:00.3]} 16... Nd4 {[%clk
0:02:31.7]} 17. Nxd4 {[%clk 0:01:55.8]} 17... Bxd4 {[%clk 0:02:32.6]} 18. c3
{[%clk 0:01:44.3]} 18... Bb6 {[%clk 0:02:28.9]} 19. Qf3 {[%clk 0:01:43.4]} 19...
Bd7 {[%clk 0:02:27.6]} 20. b3 {[%clk 0:01:42.5]} 20... Rae8 {[%clk 0:02:26.8]}
21. Rae1 {[%clk 0:01:42.2]} 21... Qf7 {[%clk 0:02:23]} 22. c4 {[%clk 0:01:39.4]}
22... Rxe1 {[%clk 0:02:19.7]} 23. Rxe1 {[%clk 0:01:39.4]} 23... Re8 {[%clk
0:02:20.6]} 24. Rxe8+ {[%clk 0:01:33.4]} 24... Qxe8 {[%clk 0:02:21.5]} 25. Bf2
{[%clk 0:01:31.7]} 25... Bxf2 {[%clk 0:02:16.1]} 26. Qxf2 {[%clk 0:01:32.6]}
26... b6 {[%clk 0:02:16.7]} 27. h3 {[%clk 0:01:31.4]} 27... Kg8 {[%clk 0:02:15]}
28. Kh2 {[%clk 0:01:30.3]} 28... Qe7 {[%clk 0:02:14.7]} 29. Qd2 {[%clk
0:01:25.5]} 29... Qf6 {[%clk 0:02:13.3]} 30. Qe3 {[%clk 0:01:24.6]} 30... Kf8
{[%clk 0:02:11.2]} 31. Qe2 {[%clk 0:01:20.1]} 31... Qd4 {[%clk 0:02:10.6]} 32.
Qf3 {[%clk 0:01:13.1]} 32... g6 {[%clk 0:02:03.8]} 33. Be2 {[%clk 0:01:11.6]}
33... Kg7 {[%clk 0:01:59.2]} 34. g4 {[%clk 0:01:04.1]} 34... fxg4 {[%clk
0:01:55.5]} 35. hxg4 {[%clk 0:01:05]} 35... Qd2 {[%clk 0:01:53.2]} 36. Kg3
{[%clk 0:01:01.2]} 36... g5 {[%clk 0:01:49.4]} 37. f5 {[%clk 0:00:57.6]} 37...
Kf6 {[%clk 0:01:48.3]} 38. Qe4 {[%clk 0:00:53.1]} 38... Qc3+ {[%clk 0:01:44.6]}
39. Qd3 {[%clk 0:00:47.4]} 39... Qe1+ {[%clk 0:01:43.8]} 40. Kg2 {[%clk
0:00:46.1]} 40... Qa1 {[%clk 0:01:43.9]} 41. Qe3 {[%clk 0:00:44.9]} 41... Qe5
{[%clk 0:01:39.3]} 42. Qf3 {[%clk 0:00:44]} 42... Qd4 {[%clk 0:01:34.8]} 43. Kf1
{[%clk 0:00:42.4]} 43... Be8 {[%clk 0:01:33.7]} 44. Qh3 {[%clk 0:00:41]} 44...
Kg7 {[%clk 0:01:29.5]} 45. Ke1 {[%clk 0:00:38.5]} 45... Bf7 {[%clk 0:01:26.2]}
46. Kf1 {[%clk 0:00:37.9]} 46... h6 {[%clk 0:01:22.1]} 47. Ke1 {[%clk
0:00:37.4]} 47... Qa1+ {[%clk 0:01:20]} 48. Kf2 {[%clk 0:00:37.4]} 48... Qc1
{[%clk 0:01:17.9]} 49. Qf3 {[%clk 0:00:33.9]} 49... Kf6 {[%clk 0:01:16.8]} 50.
Qh3 {[%clk 0:00:33.6]} 50... Qf4+ {[%clk 0:01:16]} 51. Ke1 {[%clk 0:00:32.9]}
51... Kg7 {[%clk 0:01:16.1]} 52. Qc3+ {[%clk 0:00:32.1]} 52... Kh7 {[%clk
0:01:15.4]} 53. Qd3 {[%clk 0:00:31.5]} 53... Qe5 {[%clk 0:01:10.8]} 54. Qf3
{[%clk 0:00:28.3]} 54... Kg7 {[%clk 0:01:10]} 55. Kf1 {[%clk 0:00:27.3]} 55...
Be8 {[%clk 0:01:04.6]} 56. Ke1 {[%clk 0:00:26.4]} 56... Qd4 {[%clk 0:00:59]} 57.
Kf1 {[%clk 0:00:25.3]} 57... Bd7 {[%clk 0:00:57.9]} 58. Kg2 {[%clk 0:00:24.2]}
58... Qe5 {[%clk 0:00:50.2]} 59. Qd3 {[%clk 0:00:23.4]} 59... Be8 {[%clk
0:00:47.9]} 60. Qf3 {[%clk 0:00:21.6]} 60... Bd7 {[%clk 0:00:47.6]} 61. Kf2
{[%clk 0:00:21.4]} 61... h5 {[%clk 0:00:46.1]} 62. gxh5 {[%clk 0:00:18.6]} 62...
Bxf5 {[%clk 0:00:46.5]} 63. Qg3 {[%clk 0:00:18.5]} 63... Qd4+ {[%clk 0:00:44.5]}
64. Kf1 {[%clk 0:00:17.8]} 64... Kh6 {[%clk 0:00:42.7]} 65. Ke1 {[%clk
0:00:17.7]} 65... g4 {[%clk 0:00:38.2]} 66. Qh4 {[%clk 0:00:16.8]} 66... Qc3+
{[%clk 0:00:37.1]} 67. Kf1 {[%clk 0:00:16.4]} 67... Qe5 {[%clk 0:00:33.2]} 68.
Qd8 {[%clk 0:00:14.9]} 68... Qf4+ {[%clk 0:00:32.1]} 69. Ke1 {[%clk 0:00:15.3]}
69... Kxh5 {[%clk 0:00:30.5]} 70. Qxc7 {[%clk 0:00:12.4]} 70... Kg5 {[%clk
0:00:23.7]} 71. Qg7+ {[%clk 0:00:11.5]} 71... Kh4 {[%clk 0:00:24]} 72. Qh8+
{[%clk 0:00:10.4]} 72... Kg3 {[%clk 0:00:23.7]} 73. Qb8 {[%clk 0:00:08.3]} 73...
Qc1+ {[%clk 0:00:19.7]} 74. Bd1 {[%clk 0:00:07.8]} 74... Qc3+ {[%clk 0:00:19.8]}
75. Kf1 {[%clk 0:00:04.9]} 75... Bd3+ {[%clk 0:00:17.2]} 76. Kg1 {[%clk
0:00:05.1]} 76... Qd4+ {[%clk 0:00:17.2]} 77. Kh1 {[%clk 0:00:03.8]} 77... Be4+
{[%clk 0:00:18.1]} 0-1

[Event "*** Titled Tuesday Blitz"]
[Site "Chess.com"]
[Date "2020.11.03"]
[Round "8"]
[White "politeplayer"]
[Black "cukin84"]
[Result "0-1"]
[WhiteElo "2214"]
[BlackElo "2081"]
[TimeControl "180+1"]
[EndTime "11:34:24 PST"]
[Termination "cukin84 won on time"]

1. e4 {[%clk 0:03:00.9]} 1... c6 {[%clk 0:02:59.8]} 2. d4 {[%clk 0:03:00.2]}
2... d5 {[%clk 0:02:59.5]} 3. exd5 {[%clk 0:03:00.2]} 3... cxd5 {[%clk
0:02:59.1]} 4. Nf3 {[%clk 0:03:01]} 4... Nc6 {[%clk 0:02:58.6]} 5. Bb5 {[%clk
0:02:59.1]} 5... Nf6 {[%clk 0:02:55.9]} 6. O-O {[%clk 0:02:58.6]} 6... a6 {[%clk
0:02:54.6]} 7. Bxc6+ {[%clk 0:02:58]} 7... bxc6 {[%clk 0:02:54.8]} 8. Ne5 {[%clk
0:02:57.6]} 8... Qb6 {[%clk 0:02:51]} 9. Nc3 {[%clk 0:02:54.2]} 9... e6 {[%clk
0:02:49.9]} 10. Re1 {[%clk 0:02:47.1]} 10... Be7 {[%clk 0:02:49.2]} 11. Na4
{[%clk 0:02:45.3]} 11... Qb5 {[%clk 0:02:43.7]} 12. c3 {[%clk 0:02:42.7]} 12...
O-O {[%clk 0:02:40.4]} 13. b4 {[%clk 0:02:38]} 13... a5 {[%clk 0:02:38.8]} 14.
a3 {[%clk 0:02:32.3]} 14... axb4 {[%clk 0:02:38.7]} 15. axb4 {[%clk 0:02:29.2]}
15... Ne4 {[%clk 0:02:36]} 16. Bb2 {[%clk 0:02:15.2]} 16... f6 {[%clk
0:02:30.5]} 17. Nd3 {[%clk 0:02:11]} 17... Bd6 {[%clk 0:02:29]} 18. f3 {[%clk
0:02:09.1]} 18... Ng5 {[%clk 0:02:20]} 19. Nac5 {[%clk 0:02:04.6]} 19... Rxa1
{[%clk 0:02:17.9]} 20. Qxa1 {[%clk 0:02:04.9]} 20... e5 {[%clk 0:02:11.2]} 21.
dxe5 {[%clk 0:01:58.8]} 21... fxe5 {[%clk 0:02:10.9]} 22. Nxe5 {[%clk
0:01:59.3]} 22... Bxc5+ {[%clk 0:02:10.1]} 23. bxc5 {[%clk 0:01:58.5]} 23...
Qxc5+ {[%clk 0:02:10.2]} 24. Kh1 {[%clk 0:01:59.1]} 24... Qf2 {[%clk 0:01:59]}
25. Ba3 {[%clk 0:01:38]} 25... Re8 {[%clk 0:01:38.8]} 26. Nd3 {[%clk 0:01:36.7]}
26... Rxe1+ {[%clk 0:01:37.6]} 27. Qxe1 {[%clk 0:01:37.1]} 27... Qxe1+ {[%clk
0:01:36.5]} 28. Nxe1 {[%clk 0:01:37.5]} 28... Bf5 {[%clk 0:01:35.3]} 29. g4
{[%clk 0:01:34.3]} 29... Bb1 {[%clk 0:01:31.8]} 30. h4 {[%clk 0:01:34.2]} 30...
Ne6 {[%clk 0:01:29.8]} 31. Bd6 {[%clk 0:01:32.1]} 31... Kf7 {[%clk 0:01:28.7]}
32. Kg2 {[%clk 0:01:31.3]} 32... Ke8 {[%clk 0:01:26.5]} 33. Kg3 {[%clk
0:01:30.9]} 33... Kd7 {[%clk 0:01:26.4]} 34. Be5 {[%clk 0:01:31]} 34... g6
{[%clk 0:01:22.7]} 35. f4 {[%clk 0:01:30.9]} 35... Be4 {[%clk 0:01:19.7]} 36.
Nf3 {[%clk 0:01:31.1]} 36... c5 {[%clk 0:01:19.2]} 37. Nd2 {[%clk 0:01:23.5]}
37... Bd3 {[%clk 0:01:17.4]} 38. h5 {[%clk 0:01:22.8]} 38... gxh5 {[%clk
0:01:16.8]} 39. gxh5 {[%clk 0:01:12.6]} 39... Bf5 {[%clk 0:01:16.3]} 40. Nf3
{[%clk 0:01:10.1]} 40... Kc6 {[%clk 0:01:06.8]} 41. Nh4 {[%clk 0:01:07.7]} 41...
Be4 {[%clk 0:01:02.8]} 42. f5 {[%clk 0:01:06.8]} 42... Ng5 {[%clk 0:01:02.6]}
43. f6 {[%clk 0:00:58.8]} 43... Nf7 {[%clk 0:01:02.2]} 44. Kf4 {[%clk 0:00:59]}
44... Bb1 {[%clk 0:01:00.3]} 45. Nf5 {[%clk 0:00:55.3]} 45... Kd7 {[%clk
0:00:50.9]} 46. Ng7 {[%clk 0:00:43.5]} 46... Bc2 {[%clk 0:00:46.2]} 47. Bb8
{[%clk 0:00:39.1]} 47... Bb1 {[%clk 0:00:44.7]} 48. Ba7 {[%clk 0:00:38.5]} 48...
Kc6 {[%clk 0:00:41.3]} 49. Nf5 {[%clk 0:00:37]} 49... Kd7 {[%clk 0:00:36.8]} 50.
Bxc5 {[%clk 0:00:35.8]} 50... Ke6 {[%clk 0:00:36.8]} 51. Ne3 {[%clk 0:00:31.8]}
51... Kxf6 {[%clk 0:00:34]} 52. Nxd5+ {[%clk 0:00:31.4]} 52... Ke6 {[%clk
0:00:33.9]} 53. Ne3 {[%clk 0:00:29.8]} 53... Nd8 {[%clk 0:00:29.9]} 54. Kg5
{[%clk 0:00:27.6]} 54... Ke5 {[%clk 0:00:27]} 55. Bd4+ {[%clk 0:00:27]} 55...
Ke4 {[%clk 0:00:25.5]} 56. Nf5 {[%clk 0:00:26.2]} 56... Ne6+ {[%clk 0:00:23.9]}
57. Kf6 {[%clk 0:00:25.8]} 57... Nf4 {[%clk 0:00:21.4]} 58. h6 {[%clk
0:00:22.1]} 58... Kd5 {[%clk 0:00:20.9]} 59. Ne7+ {[%clk 0:00:18.4]} 59... Kc4
{[%clk 0:00:20.2]} 60. Be5 {[%clk 0:00:17.4]} 60... Nh5+ {[%clk 0:00:16.8]} 61.
Kf7 {[%clk 0:00:16]} 61... Bc2 {[%clk 0:00:12.5]} 62. Bg7 {[%clk 0:00:14.5]}
62... Kc5 {[%clk 0:00:10.6]} 63. Kg8 {[%clk 0:00:12.5]} 63... Kd6 {[%clk
0:00:09.8]} 64. Nc8+ {[%clk 0:00:12.2]} 64... Kd7 {[%clk 0:00:09.7]} 65. Nb6+
{[%clk 0:00:11.9]} 65... Ke7 {[%clk 0:00:09.4]} 66. Nd5+ {[%clk 0:00:11.6]}
66... Ke6 {[%clk 0:00:09.2]} 67. Nf4+ {[%clk 0:00:11.3]} 67... Nxf4 {[%clk
0:00:08.8]} 68. c4 {[%clk 0:00:07.1]} 68... Kd6 {[%clk 0:00:08.8]} 69. Bf8+
{[%clk 0:00:04.3]} 69... Kc6 {[%clk 0:00:08.6]} 70. c5 {[%clk 0:00:04.3]} 70...
Ne6 {[%clk 0:00:08.4]} 71. Be7 {[%clk 0:00:04]} 71... Nxc5 {[%clk 0:00:08.6]}
72. Kg7 {[%clk 0:00:01.2]} 72... Ne6+ {[%clk 0:00:08.8]} 73. Kh8 {[%clk
0:00:01.2]} 73... Kd7 {[%clk 0:00:09.1]} 74. Bf8 {[%clk 0:00:01.3]} 74... Ke8
{[%clk 0:00:09]} 75. Kg8 {[%clk 0:00:01.9]} 75... Ng5 {[%clk 0:00:08.4]} 76. Bd6
{[%clk 0:00:01.5]} 76... Ne6 {[%clk 0:00:08]} 0-1

[Event "*** Titled Tuesday Blitz"]
[Site "Chess.com"]
[Date "2020.11.03"]
[Round "8"]
[White "pfalcon1949"]
[Black "Fortitudine"]
[Result "1/2-1/2"]
[WhiteElo "1986"]
[BlackElo "2262"]
[TimeControl "180+1"]
[EndTime "11:34:25 PST"]
[Termination "Game drawn - insufficient material"]

1. c4 {[%clk 0:03:00.9]} 1... Nf6 {[%clk 0:02:58.3]} 2. Nc3 {[%clk 0:03:00.8]}
2... c5 {[%clk 0:02:57.5]} 3. g3 {[%clk 0:02:59.4]} 3... g6 {[%clk 0:02:57.3]}
4. Bg2 {[%clk 0:02:59.2]} 4... Bg7 {[%clk 0:02:57.9]} 5. e4 {[%clk 0:02:59.4]}
5... O-O {[%clk 0:02:54.1]} 6. Nge2 {[%clk 0:02:59.9]} 6... Nc6 {[%clk
0:02:48.8]} 7. O-O {[%clk 0:02:59]} 7... Ne8 {[%clk 0:02:42.9]} 8. d3 {[%clk
0:02:59]} 8... Nc7 {[%clk 0:02:42.6]} 9. Be3 {[%clk 0:02:58.8]} 9... d6 {[%clk
0:02:42.5]} 10. d4 {[%clk 0:02:53.3]} 10... cxd4 {[%clk 0:02:39.4]} 11. Nxd4
{[%clk 0:02:53.2]} 11... Ne6 {[%clk 0:02:39.9]} 12. Nde2 {[%clk 0:02:52]} 12...
Rb8 {[%clk 0:02:26.6]} 13. Rc1 {[%clk 0:02:50.1]} 13... b6 {[%clk 0:02:23.7]}
14. b3 {[%clk 0:02:50.2]} 14... Bb7 {[%clk 0:02:11.5]} 15. Nd5 {[%clk
0:02:49.6]} 15... Bb2 {[%clk 0:01:08.3]} 16. Rb1 {[%clk 0:02:36.3]} 16... Bg7
{[%clk 0:01:01.1]} 17. Qd2 {[%clk 0:02:34.2]} 17... Nc7 {[%clk 0:00:56.9]} 18.
Nec3 {[%clk 0:02:29.5]} 18... Nxd5 {[%clk 0:00:50.7]} 19. Nxd5 {[%clk
0:02:24.3]} 19... Ne5 {[%clk 0:00:44.6]} 20. h3 {[%clk 0:02:22.6]} 20... e6
{[%clk 0:00:29.8]} 21. Nc3 {[%clk 0:02:11.5]} 21... Qe7 {[%clk 0:00:29.8]} 22.
Rbd1 {[%clk 0:02:10.5]} 22... Rfd8 {[%clk 0:00:29.4]} 23. Bh6 {[%clk 0:02:08.6]}
23... a6 {[%clk 0:00:17.4]} 24. Bxg7 {[%clk 0:02:07.5]} 24... Kxg7 {[%clk
0:00:18.3]} 25. f4 {[%clk 0:02:01.4]} 25... Nc6 {[%clk 0:00:17.5]} 26. Qe3
{[%clk 0:01:58.4]} 26... Ba8 {[%clk 0:00:15.5]} 27. Qf2 {[%clk 0:01:52.5]} 27...
Kg8 {[%clk 0:00:15.6]} 28. f5 {[%clk 0:01:50.1]} 28... Ne5 {[%clk 0:00:13.1]}
29. f6 {[%clk 0:01:48]} 29... Qf8 {[%clk 0:00:13.3]} 30. g4 {[%clk 0:01:45.9]}
30... Qh6 {[%clk 0:00:13.1]} 31. Qf4 {[%clk 0:01:42]} 31... Qxf4 {[%clk
0:00:12.4]} 32. Rxf4 {[%clk 0:01:42.5]} 32... b5 {[%clk 0:00:12.9]} 33. cxb5
{[%clk 0:01:40]} 33... axb5 {[%clk 0:00:13.8]} 34. g5 {[%clk 0:01:39.4]} 34...
b4 {[%clk 0:00:13]} 35. Ne2 {[%clk 0:01:32.7]} 35... Rbc8 {[%clk 0:00:13]} 36.
Nd4 {[%clk 0:01:29.7]} 36... Rc5 {[%clk 0:00:12]} 37. h4 {[%clk 0:01:28.4]}
37... Rdc8 {[%clk 0:00:11.2]} 38. Bh3 {[%clk 0:01:25.5]} 38... Rc1 {[%clk
0:00:08.3]} 39. Rff1 {[%clk 0:01:20.6]} 39... Rxd1 {[%clk 0:00:08.6]} 40. Rxd1
{[%clk 0:01:20]} 40... Bxe4 {[%clk 0:00:08.4]} 41. Nxe6 {[%clk 0:01:20.1]} 41...
Nf3+ {[%clk 0:00:08.2]} 42. Kf2 {[%clk 0:01:12.7]} 42... Rc2+ {[%clk 0:00:08.4]}
43. Ke3 {[%clk 0:01:10.4]} 43... d5 {[%clk 0:00:08.9]} 44. Nf4 {[%clk
0:01:05.2]} 44... Rc3+ {[%clk 0:00:08.8]} 45. Kf2 {[%clk 0:01:03.3]} 45... Rc2+
{[%clk 0:00:09.3]} 46. Kg3 {[%clk 0:01:01.1]} 46... Ne5 {[%clk 0:00:09.4]} 47.
Nxd5 {[%clk 0:00:59.4]} 47... Nd3 {[%clk 0:00:08]} 48. Ne3 {[%clk 0:00:51.4]}
48... Rc3 {[%clk 0:00:07.8]} 49. Kh2 {[%clk 0:00:43.2]} 49... h6 {[%clk
0:00:08.1]} 50. Nc4 {[%clk 0:00:41.2]} 50... hxg5 {[%clk 0:00:08.3]} 51. hxg5
{[%clk 0:00:40.3]} 51... Rc2+ {[%clk 0:00:08.7]} 52. Kg3 {[%clk 0:00:38.5]}
52... Rc3 {[%clk 0:00:09]} 53. Kh2 {[%clk 0:00:38.8]} 53... Bf5 {[%clk
0:00:08.3]} 54. Bxf5 {[%clk 0:00:38.1]} 54... gxf5 {[%clk 0:00:09.2]} 55. Rd2
{[%clk 0:00:38.1]} 55... Kh7 {[%clk 0:00:08.3]} 56. Nd6 {[%clk 0:00:38.2]} 56...
Kg6 {[%clk 0:00:08.2]} 57. Rg2 {[%clk 0:00:32.7]} 57... Nf4 {[%clk 0:00:07.9]}
58. Rg3 {[%clk 0:00:32]} 58... Rc2+ {[%clk 0:00:07.9]} 59. Kg1 {[%clk
0:00:31.7]} 59... Rxa2 {[%clk 0:00:08]} 60. Re3 {[%clk 0:00:30.9]} 60... Ra1+
{[%clk 0:00:06.7]} 61. Kf2 {[%clk 0:00:29.9]} 61... Ra2+ {[%clk 0:00:06.3]} 62.
Kf3 {[%clk 0:00:29.8]} 62... Nh3 {[%clk 0:00:06]} 63. Kg3 {[%clk 0:00:29.3]}
63... Nxg5 {[%clk 0:00:06.9]} 64. Re7 {[%clk 0:00:26.8]} 64... Ne4+ {[%clk
0:00:07.1]} 65. Nxe4 {[%clk 0:00:25.1]} 65... fxe4 {[%clk 0:00:08]} 66. Rxe4
{[%clk 0:00:25.4]} 66... Rc2 {[%clk 0:00:08.2]} 67. Rxb4 {[%clk 0:00:25.9]}
67... Rc3+ {[%clk 0:00:08.6]} 68. Kf4 {[%clk 0:00:25.9]} 68... Kxf6 {[%clk
0:00:09.5]} 69. Rb6+ {[%clk 0:00:25.5]} 69... Kg7 {[%clk 0:00:10.2]} 70. Rb7
{[%clk 0:00:25.9]} 70... Kf6 {[%clk 0:00:10.1]} 71. b4 {[%clk 0:00:26.8]} 71...
Rc4+ {[%clk 0:00:10.6]} 72. Kf3 {[%clk 0:00:26.2]} 72... Ke6 {[%clk 0:00:11.1]}
73. b5 {[%clk 0:00:25.9]} 73... Rb4 {[%clk 0:00:11.6]} 74. Rb6+ {[%clk 0:00:26]}
74... Kf5 {[%clk 0:00:11.7]} 75. Rb7 {[%clk 0:00:26.4]} 75... Rb3+ {[%clk
0:00:12.3]} 76. Ke2 {[%clk 0:00:26.7]} 76... f6 {[%clk 0:00:12.9]} 77. b6 {[%clk
0:00:27.1]} 77... Kf4 {[%clk 0:00:13]} 78. Rb8 {[%clk 0:00:28]} 78... f5 {[%clk
0:00:13.3]} 79. b7 {[%clk 0:00:27.8]} 79... Rb6 {[%clk 0:00:13.3]} 80. Kf2
{[%clk 0:00:26.2]} 80... Rb2+ {[%clk 0:00:12.7]} 81. Ke1 {[%clk 0:00:25.8]}
81... Kf3 {[%clk 0:00:13.1]} 82. Rf8 {[%clk 0:00:25.1]} 82... Rb1+ {[%clk
0:00:13.5]} 83. Kd2 {[%clk 0:00:24.6]} 83... Rxb7 {[%clk 0:00:14.4]} 84. Rxf5+
{[%clk 0:00:24.3]} 84... Ke4 {[%clk 0:00:15]} 85. Rf8 {[%clk 0:00:23.7]} 85...
Rd7+ {[%clk 0:00:15]} 86. Kc3 {[%clk 0:00:22]} 86... Re7 {[%clk 0:00:13.5]} 87.
Rf1 {[%clk 0:00:21.6]} 87... Rc7+ {[%clk 0:00:12.5]} 88. Kb4 {[%clk 0:00:21.3]}
88... Rb7+ {[%clk 0:00:11.8]} 89. Kc5 {[%clk 0:00:21]} 89... Rc7+ {[%clk
0:00:12]} 90. Kd6 {[%clk 0:00:21.3]} 90... Rc2 {[%clk 0:00:12.1]} 91. Re1+
{[%clk 0:00:21.7]} 91... Kd3 {[%clk 0:00:12.2]} 92. Re6 {[%clk 0:00:22.2]} 92...
Rd2 {[%clk 0:00:12.3]} 93. Ke7 {[%clk 0:00:22.4]} 93... Kc3 {[%clk 0:00:12.2]}
94. Rc6+ {[%clk 0:00:22.4]} 94... Kd3 {[%clk 0:00:12.5]} 95. Rd6+ {[%clk
0:00:22.8]} 95... Ke2 {[%clk 0:00:13.4]} 96. Rxd2+ {[%clk 0:00:22.7]} 96... Kxd2
{[%clk 0:00:14.3]} 1/2-1/2